Cogmind - Beta 15 @@@ ROGUE MODE // 2025.08.08 @ 09:06:48 Player: shapeshifter Result: Destroyed by G-34 Mercenary with Small Laser Performance ------------- Evolutions (1) 500 Regions Visited (2) 400 Robots Destroyed (56) 280 Value Destroyed (1053) 1053 Prototype IDs (4) 80 Alien Tech Used (0) 0 Bonus (0) 0 TOTAL SCORE: 2313 Bonus ------- None Cogmind --------- Core Integrity 0/400 Matter 300/300 Energy 100/100 System Corruption 13% Temperature Cool (6) Movement Treading (160) Location -9/Materials Parts ------- > --- POWER (1) -------- (None) > --- PROPULSION (4) --- Light Treads (fused) > --- UTILITY (2) ------ Medium Storage Unit Hacking Suite > --- WEAPON (2) ------- Hammer > --- INVENTORY (10) --- Heat Sink Large Storage Unit Visual Processing Unit ECM Suite Shield Generator EM Pulse Gun EM Pulse Gun Autogun Improved Assault Rifle Datajack Peak State ------------ > --- POWER ------------ Light Ion Engine > --- PROPULSION ------- Improved Hover Unit Improved Hover Unit Improved Hover Unit Improved Hover Unit > --- UTILITY ---------- Medium Storage Unit Propulsion Shielding > --- WEAPON ----------- Improved Assault Rifle Hammer > --- INVENTORY -------- Improved Hover Unit Improved Hover Unit Heat Sink ECM Suite Light Armor Plating Shield Generator Hacking Suite Light Assault Rifle Light Assault Rifle Datajack [Rating: 16] Favorites ----------- Power Ion Engine Engine Ion Engine Propulsion Improved Hover Unit Treads Light Treads Wheel Compact Wheel Hover Unit Improved Hover Unit Flight Unit Flight Unit Utility Medium Storage Unit Device Seismic Detector Storage Medium Storage Unit Hackware Hacking Suite Protection Light Armor Plating Weapon Light Assault Rifle Energy Gun Spread Laser Energy Cannon Light EM Pulse Cannon Ballistic Gun Light Assault Rifle Launcher Grenade Launcher Impact Weapon Hammer Build | -11 -10 -9 ------- Run | Yrd Mat Mat Slots Evolved 2 | . . 2 Power . | . . . Propulsion 2 | . . 2 Utility . | . . . Weapon . | . . . Parts Attached 45 | 8 8 29 Power 6 | 1 1 4 Engine 6 | 1 1 4 Core . | . . . Reactor . | . . . Propulsion 19 | 2 3 14 Treads 4 | 2 1 1 Leg . | . . . Wheel 3 | . 2 1 Hover 10 | . . 10 Flight 2 | . . 2 Utility 8 | 2 3 3 Device 1 | 1 . . Storage 3 | 1 1 1 Processor . | . . . Hackware 1 | . . 1 Protection 3 | . 2 1 Artifact . | . . . Weapon 12 | 3 1 8 Energy Gun 3 | 1 . 2 Energy Cannon 1 | . . 1 Ballistic Gun 6 | 2 . 4 Ballistic Cannon . | . . . Launcher 1 | . 1 . Special Weapon . | . . . Impact Weapon 1 | . . 1 Slashing Weapon . | . . . Piercing Weapon . | . . . Special Melee Weapon . | . . . Unidentified Prototypes 2 | . . 2 Corrupted Parts 2 | . . 2 System Corruption 13 | . . 13 Parts Lost 16 | . 2 14 Power 2 | . . 2 Propulsion 11 | . 1 10 Utility 2 | . 1 1 Weapon 1 | . . 1 Highest Loss Streak 5 | . 1 5 To Critical Strikes . | . . . Average Backups 8 | 3 7 9 Power . | . . . Propulsion 2 | 1 2 1 Utility 2 | . . 4 Weapon 2 | . 2 3 Tool/Special . | . . . Unused Backups 23 | . 6 17 Power . | . . . Propulsion 10 | . 4 6 Utility 7 | . 2 5 Weapon 5 | . . 5 Tool/Special 1 | . . 1 Average Slot Usage (%) 88 | . 93 84 Engine 11 | . 14 8 Treads 12 | . 24 . Wheel 2 | . 1 3 Hover 12 | . . 25 Flight 2 | . . 5 Device 2 | . 4 . Storage 12 | . 14 11 Hackware 1 | . . 3 Protection 6 | . 5 7 Energy Cannon 1 | . . 2 Ballistic Gun 17 | . 27 7 Impact Weapon 4 | . . 8 Peak Build Rating 16 | 7 8 16 Average Rating 9 | 5 6 11 On Entrance 5 | . 7 8 Naked Turns . | . . . Heaviest Build 25 | 13 22 25 Greatest Support 40 | 40 40 32 Greatest Overweight (x) 5 | . . 5 Average Overweight (x) . | . . . Largest Inventory Capacity 15 | 8 10 15 Average Capacity 9 | 7 9 10 Most Carried 10 | 5 10 10 Average Carried 8 | 3 7 9 Final Capacity 10 | 8 10 10 Final Carried 10 | 4 10 10 Class Distribution -------------------- 79% | Mutant 20% | Scavenger-Mutant Dominant Class ---------------- Mutant | -10/Materials Mutant | -9/Materials Resources | -11 -10 -9 ----------- Run | Yrd Mat Mat Matter Collected 1046 | 249 335 462 Remotely . | . . . Salvage Created 1810 | 20 563 1227 Parts 101 | 4 37 60 Haulers Intercepted 6 | . 2 4 Recyclers Shooed 7 | . 4 3 Parts Field Recycled . | . . . Retrieved Matter . | . . . Parts Self-Destructed . | . . . Prevented . | . . . Kills | -11 -10 -9 ------- Run | Yrd Mat Mat Combat Hostiles Destroyed 39 | . 12 27 Melee 5 | . . 5 Guns 21 | . 10 11 Cannons 2 | . . 2 AOE 2 | . 2 . Classes Destroyed 9 | 1 5 3 Builder 1 | . . 1 Tunneler 1 | 1 . . Hauler 6 | . 2 4 Recycler 4 | . 2 2 Operator 2 | . . 2 Watcher 3 | . 1 2 Swarmer 20 | . 6 14 Grunt 13 | . 6 7 Sentry 6 | . . 6 Best Kill Streak 5 | 1 3 5 Combat Bots Only 5 | . 3 5 Max Kills in Single Turn 1 | 1 1 1 Gunslinging . | . . . Exploded 1 | . 1 . Melee 1 | . . 1 Uniques/NPCs Destroyed . | . . . Combat | -11 -10 -9 -------- Run | Yrd Mat Mat Hostile Shots Fired 282 | . 93 189 Missed 83 | . 30 53 Hits 199 | . 63 136 Projectile 199 | . 63 136 Critical Strikes 5 | . 1 4 Damage Taken 2136 | . 622 1514 Core 513 | . 110 403 Absorbed by Shields . | . . . Redirected to Shielding 53 | . . 53 Core Remaining (%) 78 | 100 56 . Volleys Fired 155 | 7 83 65 Largest 2 | 2 2 2 Hottest 65 | 40 40 65 Shots Fired 283 | 14 163 106 Gun 270 | 14 160 96 Cannon 10 | . . 10 Launcher 3 | . 3 . Special . | . . . Kinetic 267 | 14 160 93 Thermal 3 | . . 3 Explosive 3 | . 3 . Electromagnetic 10 | . . 10 Robot Hit Streak 13 | 8 10 13 Robot Miss Streak 14 | 2 5 14 Penetration Max . | . . . Secondary Targets 1 | . . 1 Max Gunslinging Chain 1 | . . 1 Shots Hit Robots 241 | 10 82 149 Core Hits 80 | 3 40 37 Critical Kills 1 | . . 1 Critical Parts Destroyed 8 | . 1 7 Critical Strikes 10 | . 1 9 Destroy 1 | . 1 . Corrupt 1 | . . 1 Smash 8 | . . 8 Melee Attacks 92 | . . 92 Impact 92 | . . 92 Slashing . | . . . Piercing . | . . . Sneak Attacks 10 | . . 10 Combat Hostiles 2 | . . 2 Follow-up Attacks . | . . . Damage Inflicted 3619 | 76 716 2827 Guns 1333 | 76 666 591 Cannons 138 | . . 138 Explosions 50 | . 50 . Melee 2098 | . . 2098 Ramming . | . . . Kinetic 1324 | 76 666 582 Thermal 9 | . . 9 Explosive 50 | . 50 . Electromagnetic 138 | . . 138 Impact 2098 | . . 2098 Slashing . | . . . Piercing . | . . . Highest Corruption 13 | . . 13 Average Corruption 4 | . . 4 Corruption Purged . | . . . Corruption Blocked . | . . . Effects 10 | . . 10 Message Errors 1 | . . 1 Matter Fused 4 | . . 4 Energy Discharges 1 | . . 1 Parts Fused 1 | . . 1 Data Loss (minor) 2 | . . 2 Data Loss (major) 1 | . . 1 Overload Shots . | . . . Overflow Damage 435 | . . 435 Projectiles . | . . . Explosions . | . . . Melee 435 | . . 435 Knockbacks 6 | . . 6 Impact 6 | . . 6 Kinetic . | . . . Secondary . | . . . Self-Inflicted Damage . | . . . Shots . | . . . Rammed . | . . . Targets Rammed . | . . . Kicked . | . . . Crushed . | . . . Highest Temperature 91 | . 55 91 Average Temperature 15 | . 12 17 Received Heat Transfer 804 | . 222 582 Siege Activations . | . . . Martial Activations . | . . . Shielding Activations . | . . . Robots Disrupted . | . . . Combat Hostiles . | . . . Robots Corrupted 13 | . . 13 Combat Hostiles 9 | . . 9 Parts Fried 11 | . . 11 Impact Corruptions 28 | . . 28 Robots Melted . | . . . Combat Hostiles . | . . . Parts Melted . | . . . Heat Transferred 10 | . . 10 Parts Sabotaged . | . . . Parts Stolen . | . . . Parts Stripped . | . . . Power Chain Reactions . | . . . Alert | -11 -10 -9 ------- Run | Yrd Mat Mat Maximum Alert Level 1 | . . 1 Low Security (%) 73 | 100 100 44 Level 1 26 | . . 55 Level 2 . | . . . Level 3 . | . . . Level 4 . | . . . Level 5 . | . . . High Security . | . . . Max Security . | . . . Peak Influence 399 | 5 74 399 Initial 22 | . . 22 Average 120 | . 22 232 Influence Increases 1303 | 5 377 921 Destroy 0b10 Robot/C 780 | . 240 540 Destroy 0b10 Robot/NC 85 | 5 25 55 Destroy Leader 178 | . 46 132 Successful Hack 34 | . 5 29 Destroy Structure 16 | . 16 . Lose Combat Pursuer 210 | . 45 165 Influence Decreases 945 | 5 323 617 Entered New Map 32 | . . 32 Time Decay 753 | 5 303 445 Lost Part 160 | . 20 140 Squads Dispatched 3 | . 1 2 Investigation 2 | . 1 1 Extermination . | . . . Reinforcement 1 | . . 1 Assault . | . . . Garrison . | . . . Intercept . | . . . Searches Triggered . | . . . Construction Impeded . | . . . Haulers Reinforced . | . . . Active Scanning Responses . | . . . Cargo Convoy Interrupts . | . . . Stealth | -11 -10 -9 --------- Run | Yrd Mat Mat Distress Signals 2 | . 1 1 Communications Jammed . | . . . Distress Signals . | . . . Times Spotted 71 | . 23 48 Peak Tracking Total 7 | . 4 7 Tactical Retreats 8 | . 2 6 Traps | -11 -10 -9 ------- Run | Yrd Mat Mat Traps Triggered 2 | . 2 . Indirectly . | . . . Trap Hack Attempts . | . . . Triggered . | . . . Disarmed . | . . . Reprogrammed . | . . . Reused . | . . . Traps Extracted . | . . . Installed . | . . . Triggered . | . . . Machines | -11 -10 -9 ---------- Run | Yrd Mat Mat Machines Disabled . | . . . Max in Single Turn . | . . . Machines Repaired . | . . . Machines Dismantled . | . . . Machines Sabotaged . | . . . Overloaded Fab Kills . | . . . Hacking | -11 -10 -9 --------- Run | Yrd Mat Mat Machines Accessed 10 | . 6 4 Terminals 10 | . 6 4 Fabricators . | . . . Repair Stations . | . . . Recycling Units . | . . . Scanalyzers . | . . . Garrison Access . | . . . Total Hacks 30 | . 18 12 Successful 8 | . 2 6 Failed 22 | . 16 6 Catastrophic 5 | . 3 2 Database Lockouts . | . . . Manual 24 | . 17 7 Terminals 30 | . 18 12 Fabricators . | . . . Repair Stations . | . . . Recycling Units . | . . . Scanalyzers . | . . . Garrison Access . | . . . Terminal Hacks 6 | . 1 5 Prototype ID Bank 1 | . . 1 Registered Components 3 | . 1 2 Zone Layout 2 | . . 2 Fabricator Hacks . | . . . Repair Station Hacks . | . . . Recycling Unit Hacks . | . . . Scanalyzer . | . . . Garrison Access Hacks . | . . . Unauthorized Hacks 2 | . 1 1 Terminals 2 | . 1 1 Botnet 2 | . 1 1 Fabricators . | . . . Repair Stations . | . . . Recycling Units . | . . . Scanalyzers . | . . . Garrison Access . | . . . Data Cores Recovered 1 | . . 1 Used . | . . . Hacking Detections 7 | . 4 3 Full Trace Events 4 | . 3 1 Feedback Events . | . . . Feedback Blocked . | . . . Robot Schematics Acquired . | . . . Robots Built . | . . . Authchips . | . . . Time . | . . . Total Robot Build Rating . | . . . Part Schematics Acquired . | . . . Parts Built . | . . . Authchips . | . . . Time . | . . . Total Part Build Rating . | . . . Parts Repaired . | . . . Time . | . . . Parts Recycled . | . . . Recycled Matter . | . . . Retrieved Matter . | . . . Retrieved Components . | . . . Parts Scanalyzed . | . . . Part Schematics Acquired . | . . . Parts Damaged . | . . . Bothacking | -11 -10 -9 ------------ Run | Yrd Mat Mat Used RIF Installer . | . . . Robots Hacked . | . . . Non-combat . | . . . Combat . | . . . Robot Hacks Applied . | . . . Relay Couplers Released . | . . . Fabnet Peak Effective % . | . . . Robots Rewired . | . . . Allies Hacked . | . . . Hacks Repelled . | . . . Allies | -11 -10 -9 -------- Run | Yrd Mat Mat Total Allies . | . . . Largest Group . | . . . Highest-Rated Group . | . . . Highest-Rated Ally . | . . . Total Orders . | . . . Ally Attacks . | . . . Total Damage . | . . . Kills . | . . . Allies Corrupted . | . . . Allies Melted . | . . . Intel | -11 -10 -9 ------- Run | Yrd Mat Mat Active Infowar (turns) 389 | 17 372 . Seismic 389 | 17 372 . Robot Analysis Total . | . . . Derelict Logs Recovered . | . . . Drone Launches . | . . . Drone Recoveries . | . . . Exploration | -11 -10 -9 ------------- Run | Yrd Mat Mat Turns Passed 2456 | 138 1165 1153 Spaces Moved 1392 | 77 574 741 Core 24 | 19 . 5 Treads 627 | 58 532 37 Legs . | . . . Wheels 246 | . 42 204 Hover 470 | . . 470 Flight 25 | . . 25 Fastest Speed 48 | 50 100 48 Average Speed 110 | 132 155 73 Slowest Speed 440 | 160 160 440 Overloaded Moves . | . . . Propulsion Burnouts . | . . . Robots Hopped . | . . . Potential Cave-ins . | . . . Cave-ins Triggered . | . . . Exploration Rate (%) 45 | 5 89 42 Regions Visited 2 Branch Regions . Pre-discovered Areas . | . . . Known Exits Taken . | . . . Unknown Exits Taken 2 | 1 1 . Scrap Searched . | . . . Spaces Dug . | . . . Terrain Destroyed 28 | . 28 . Melee . | . . . Projectile . | . . . AOE 28 | . 28 . Terrain Rammed . | . . . Walls Destroyed . | . . . Machines Disabled . | . . . Actions | -11 -10 -9 --------- Run | Yrd Mat Mat Total 1922 | 101 718 1103 Wait 132 | . 17 115 Move 1390 | 76 573 741 Hop . | . . . Pick Up 55 | 10 20 25 Fast Attach 15 | 1 3 11 Attach 18 | 6 3 9 Detach 3 | . 1 2 Swap 20 | 1 5 14 Drop 42 | . 13 29 Fire 155 | 7 83 65 Melee 92 | . . 92 Ram . | . . . Kick . | . . . Crush . | . . . Escape Stasis . | . . . Rewire . | . . . Trap . | . . . Miscellaneous . | . . . Route ------- -11/Scrapyard -10/Materials (discovered 5 exits: *Mat x3 / [*Min x2]) -9/Materials (discovered 2 exits: [*Mat] / [*Min]) History --------- Turn | Location | Event 7 | -11/Scrapyard | Discovered new exit (range 15) 139 | -11/Scrapyard | Entered Materials 295 | -10/Materials | Discovered new exit (range 15) 329 | -10/Materials | Build established: Mutant 680 | -10/Materials | Discovered new exit (range 14) 810 | -10/Materials | Discovered new exit (range 4) 1017 | -10/Materials | Discovered new exit (range 11) 1229 | -10/Materials | Discovered new exit (range 16) 1304 | -10/Materials | Entered another Materials area 1304 | -9/Materials | Evolved 2 slots: Propulsion x2 1956 | -9/Materials | Core integrity fell below 50% 2015 | -9/Materials | Discovered new exit (range 16) 2074 | -9/Materials | Lost 3 parts (3n) 2206 | -9/Materials | Discovered new exit (range 15) 2311 | -9/Materials | Build established: Scavenger-Mutant 2366 | -9/Materials | Core integrity fell below 20% 2396 | -9/Materials | Lost 5 parts (1p4n) 2398 | -9/Materials | System corruption reached 10% 2457 | -9/Materials | Destroyed by G-34 Mercenary with Small Laser Last Messages --------------- 02392_ K-01 Serf collects debris. 02392_ Sneak attack on R-06 Scavenger. 02392_ Destroyed Lgt. Ion Engine. 02392_ Destroyed Sml. Storage Unit. 02392_ Destroyed Com. Wheel. 02392_ R-06 Scavenger system corrupted by crushing effect. 02392_ R-06 Scavenger knocked back. 02393_ R-06 Scavenger system terminally corrupted. 02395_ K-01 Serf collects debris. 02397_ Acquired Corrupted Lgt. Treads. 02397_ Integrated Corrupted Lgt. Treads (+10). 02398_ K-01 Serf collects debris. 02399_ Acquired 10 matter. 02401_ System corrupted: Component data lost. 02404_ K-01 Serf collects debris. 02425_ System corrupted: Lgt. Treads fused. 02429_ R-06 Scavenger inserts Hvy. Ion Engine into recycling unit. Map ----- +----------------------------------------------------+ | | | | | | | | | | | | | | | | | | | | | | | | | | | | | | | | | ?????????##########???##############?????????????? | | ?????????# ????# ! T ##????????????? | | ?????????# """ #????# """ #????????????? | | ?????????# "T" ###### """ ![ ##????????????? | | ?????????# + + """ !% #?????????????? | | ?????????# !! ###### [| #?????????????? | | ?????????####+###############+#########??????????? | | ?????????# % %% #??????????? | | ?????????# < #??????????? | | ?????????# @ % g #??????????? | | ?????????###########+######+####### ###??????????? | | ????????????????# # [ ????# #????????????? | | ????????????????# """ "" # """ ???# #????????????? | | ????????????????# """ """# """ ??# #????????????? | | ????????????????# """ S"# """ ## #????????????? | | ????????????????# # ## #????????????? | | ????????????????# """ #"" ## #????????????? | | ????????????????# """ #"T ? ## #????????????? | | ????????????????# """ #"? ?????# #????????????? | | ????????????????# #????????# #????????????? | | ?????????????????### #####??????### ############?? | | ???????????????????##?########### #?? | | ??????????????????????# # ### | | ?????????????????????## # | | ?????????????????????#[ # ### | | ?????????????????????## ! # % % #?# | | ??????????????????????# ! # #?# | | ??????????????????????# ! # % ### | | ??????????????????????# %+ % # | | ??????????????????????# # """ # | | ?????????????????????############ """ # | | ?????????????????????# # """ # | | ?????????????????????# # """ # | | ?????????????????????# + """ + | +----------------------------------------------------+ Best States ------------- Heat Dissipation 28 Energy Generation 10 Energy Capacity 250 Matter Stores 300 Matter Capacity 300 Sight Range 16 Terrain Scan Density 10 Armor Coverage 150 Propulsion Shielding 33 Evasion (%) 55 Recoil Reduction 2 Offensive Hacking 10 Item Schematics ----------------- None Robot Schematics ------------------ None Fabricated ------------ Nothing Repaired ---------- Nothing Alien Tech Used ----------------- None Achievements -------------- None Challenges ------------ None Game ------ Seed SegregatorTrapPurifier Manual? 0 Play Time 00:25:06 Cumulative 115.1 hours Start 2025.08.08 @ 08:43:13 End 2025.08.08 @ 09:06:48 Sessions 3 Manual Loads 0 Difficulty Rogue Special Mode None Game No. 202 Rogue 202 Adventurer 0 Explorer 0 Win Type - Total 1 Types 1/0/0/0/0/0/0/0/0/0 Lore% 69 Gallery% 63 Achievement% 44 Wizard Run 0 Options --------- Layout 1 ASCII 0 Keyboard 0 Movement Mouse Keybinds 0 Fullscreen 1 Font 24/Smallcaps Map View 50x35 Zoom Use 0% Tactical HUD 1 Map Filters NONE Filters NONE Steam 1 RUN: 62a4f45e-3001-41f2-8fcf-56da5f1228c9